[Event "Titled Tuesday Blitz February 28 Late 2023"]
[White "Sjugirov, Sanan"]
[Black "Drnovsek, Gal"]
[WhiteFideId "4189302"]
[BlackFideId "14607077"]
[WhiteElo "2569"]
[BlackElo "2293"]
[Result "1-0"]
[Round "01"]
[TimeControl "180+2"]
[Date "2023.02.28"]
[WhiteClock "0:00:03"]
[BlackClock "0:00:03"]

1. Nf3 {[%clk 0:03:00]}  g6 {[%clk 0:02:59]} 2. e4 {[%clk 0:02:59]}  Bg7 {[%clk 0:02:58]} 3. d4 {[%clk 0:03:00]}  d6 {[%clk 0:02:59]} 4. Bd3 {[%clk 0:02:59]}  Nc6 {[%clk 0:02:53]} 5. c3 {[%clk 0:02:58]}  e5 {[%clk 0:02:53]} 6. O-O {[%clk 0:02:57]}  Nf6 {[%clk 0:02:50]} 7. h3 {[%clk 0:02:55]}  O-O {[%clk 0:02:50]} 8. Re1 {[%clk 0:02:55]}  Qe7 {[%clk 0:02:49]} 9. Bc2 {[%clk 0:02:54]}  Bd7 {[%clk 0:02:45]} 10. Nbd2 {[%clk 0:02:54]}  Rae8 {[%clk 0:02:46]} 11. Nf1 {[%clk 0:02:53]}  Kh8 {[%clk 0:02:44]} 12. Ng3 {[%clk 0:02:44]}  Ng8 {[%clk 0:02:43]} 13. b4 {[%clk 0:02:35]}  exd4 {[%clk 0:02:41]} 14. Nxd4 {[%clk 0:02:31]}  Ne5 {[%clk 0:02:14]} 15. Rb1 {[%clk 0:02:00]}  c5 {[%clk 0:02:07]} 16. Nf3 {[%clk 0:01:52]}  Nxf3+ {[%clk 0:02:01]} 17. Qxf3 {[%clk 0:01:53]}  f5 {[%clk 0:02:01]} 18. Bd2 {[%clk 0:01:19]}  Bc6 {[%clk 0:01:58]} 19. b5 {[%clk 0:01:11]}  fxe4 {[%clk 0:01:49]} 20. Qe2 {[%clk 0:01:08]}  Bd7 {[%clk 0:01:34]} 21. Bxe4 {[%clk 0:01:01]}  Nf6 {[%clk 0:01:22]} 22. Bf3 {[%clk 0:01:00]}  Qf7 {[%clk 0:01:22]} 23. Qd3 {[%clk 0:00:58]}  d5 {[%clk 0:01:19]} 24. Bg5 {[%clk 0:00:55]}  Ne4 {[%clk 0:00:56]} 25. Nxe4 {[%clk 0:00:55]}  dxe4 {[%clk 0:00:54]} 26. Bxe4 {[%clk 0:00:48]}  Qxf2+ {[%clk 0:00:53]} 27. Kh1 {[%clk 0:00:49]}  Bf5 {[%clk 0:00:25]} 28. Re2 {[%clk 0:00:25]}  Bxe4 {[%clk 0:00:24]} 29. Rxe4 {[%clk 0:00:26]}  Rxe4 {[%clk 0:00:22]} 30. Qxe4 {[%clk 0:00:27]}  Qg3 {[%clk 0:00:22]} 31. Be3 {[%clk 0:00:18]}  Be5 {[%clk 0:00:21]} 32. Bg1 {[%clk 0:00:19]}  Qxc3 {[%clk 0:00:21]} 33. Qxb7 {[%clk 0:00:16]}  Qd3 {[%clk 0:00:15]} 34. Re1 {[%clk 0:00:12]}  Bg7 {[%clk 0:00:12]} 35. Bxc5 {[%clk 0:00:09]}  Qd2 {[%clk 0:00:11]} 36. Qe4 {[%clk 0:00:06]}  Rc8 {[%clk 0:00:09]} 37. Bg1 {[%clk 0:00:05]}  Qxa2 {[%clk 0:00:07]} 38. Bd4 {[%clk 0:00:06]}  Qg8 {[%clk 0:00:07]} 39. Bxa7 {[%clk 0:00:05]}  Bf6 {[%clk 0:00:06]} 40. Bd4 {[%clk 0:00:05]}  Rf8 {[%clk 0:00:07]} 41. b6 {[%clk 0:00:05]}  Kg7 {[%clk 0:00:07]} 42. Bxf6+ {[%clk 0:00:05]}  Rxf6 {[%clk 0:00:08]} 43. b7 {[%clk 0:00:05]}  Qb8 {[%clk 0:00:06]} 44. Qb4 {[%clk 0:00:04]}  Rf7 {[%clk 0:00:06]} 45. Rb1 {[%clk 0:00:04]}  Kg8 {[%clk 0:00:03]} 46. Qb3 {[%clk 0:00:03]}  Kg7 {[%clk 0:00:03]} 47. Qc3+ {[%clk 0:00:04]}  Kh6 {[%clk 0:00:02]} 48. Qc1+ {[%clk 0:00:04]}  g5 {[%clk 0:00:03]} 49. Qc6+ {[%clk 0:00:03]}  Kh5 {[%clk 0:00:02]} 50. Qe6 {[%clk 0:00:01]}  Kh4 {[%clk 0:00:03]} 51. Qxf7 {[%clk 0:00:01]}  Qe5 {[%clk 0:00:02]} 52. Qxh7+ {[%clk 0:00:02]}  Kg3 {[%clk 0:00:03]} 53. Qd3+ {[%clk 0:00:02]}  Kh4 {[%clk 0:00:03]} 54. Qc4+ {[%clk 0:00:03]}  g4 {[%clk 0:00:03]} 55. Qxg4# {[%clk 0:00:03]} 1-0


[Site "https://www.chess.com"]

[Event "Titled Tuesday Blitz February 28 Late 2023"]
[White "Yeritsyan, Hayk"]
[Black "Van Foreest, Jorden"]
[WhiteFideId "13307320"]
[BlackFideId "1039784"]
[WhiteElo "2482"]
[BlackElo "2633"]
[Result "0-1"]
[Round "01"]
[TimeControl "180+2"]
[Date "2023.02.28"]
[WhiteClock "0:00:03"]
[BlackClock "0:00:33"]

1. d4 {[%clk 0:02:59]}  d5 {[%clk 0:02:58]} 2. Nf3 {[%clk 0:02:57]}  Nf6 {[%clk 0:02:58]} 3. e3 {[%clk 0:02:42]}  Bf5 {[%clk 0:02:49]} 4. Bd3 {[%clk 0:02:41]}  Bxd3 {[%clk 0:02:48]} 5. Qxd3 {[%clk 0:02:42]}  e6 {[%clk 0:02:48]} 6. Qb5+ {[%clk 0:02:42]}  Nbd7 {[%clk 0:02:46]} 7. Qxb7 {[%clk 0:02:43]}  c5 {[%clk 0:02:46]} 8. Qb5 {[%clk 0:02:39]}  c4 {[%clk 0:02:46]} 9. c3 {[%clk 0:02:37]}  Bd6 {[%clk 0:02:46]} 10. Qa4 {[%clk 0:02:37]}  O-O {[%clk 0:02:46]} 11. O-O {[%clk 0:02:37]}  e5 {[%clk 0:02:46]} 12. dxe5 {[%clk 0:02:37]}  Nxe5 {[%clk 0:02:47]} 13. Nxe5 {[%clk 0:02:35]}  Bxe5 {[%clk 0:02:48]} 14. Nd2 {[%clk 0:02:36]}  Re8 {[%clk 0:02:43]} 15. Qc2 {[%clk 0:02:27]}  Rc8 {[%clk 0:02:36]} 16. Nf3 {[%clk 0:02:15]}  Ne4 {[%clk 0:02:35]} 17. Rd1 {[%clk 0:02:08]}  Bb8 {[%clk 0:02:22]} 18. Bd2 {[%clk 0:01:57]}  Rc6 {[%clk 0:02:20]} 19. Be1 {[%clk 0:01:54]}  Rh6 {[%clk 0:02:18]} 20. b3 {[%clk 0:01:25]}  Bxh2+ {[%clk 0:02:16]} 21. Kf1 {[%clk 0:01:11]}  Bb8 {[%clk 0:02:09]} 22. bxc4 {[%clk 0:01:09]}  Qc8 {[%clk 0:02:10]} 23. Rxd5 {[%clk 0:00:57]}  Rh1+ {[%clk 0:02:06]} 24. Ke2 {[%clk 0:00:57]}  Qg4 {[%clk 0:01:50]} 25. Rad1 {[%clk 0:00:44]}  Bc7 {[%clk 0:01:37]} 26. R1d4 {[%clk 0:00:24]}  h6 {[%clk 0:01:29]} 27. c5 {[%clk 0:00:17]}  Qg6 {[%clk 0:01:26]} 28. c6 {[%clk 0:00:14]}  Bb6 {[%clk 0:01:20]} 29. Rc4 {[%clk 0:00:11]}  Qe6 {[%clk 0:01:12]} 30. Qd3 {[%clk 0:00:10]}  Bc7 {[%clk 0:00:48]} 31. Rd7 {[%clk 0:00:09]}  Nd6 {[%clk 0:00:48]} 32. Rxd6 {[%clk 0:00:08]}  Bxd6 {[%clk 0:00:48]} 33. c7 {[%clk 0:00:08]}  Rc8 {[%clk 0:00:44]} 34. Rc6 {[%clk 0:00:09]}  Qxa2+ {[%clk 0:00:44]} 35. Bd2 {[%clk 0:00:08]}  Qa1 {[%clk 0:00:45]} 36. Ne1 {[%clk 0:00:06]}  Bxc7 {[%clk 0:00:39]} 37. Qd7 {[%clk 0:00:06]}  Rf8 {[%clk 0:00:38]} 38. Rxc7 {[%clk 0:00:06]}  Qa6+ {[%clk 0:00:38]} 39. Qd3 {[%clk 0:00:05]}  Qg6 {[%clk 0:00:39]} 40. Qxg6 {[%clk 0:00:05]}  fxg6 {[%clk 0:00:38]} 41. Rxa7 {[%clk 0:00:05]}  Rh5 {[%clk 0:00:38]} 42. g3 {[%clk 0:00:04]}  Rhf5 {[%clk 0:00:38]} 43. f4 {[%clk 0:00:05]}  Rh5 {[%clk 0:00:39]} 44. Kf3 {[%clk 0:00:03]}  Rh2 {[%clk 0:00:39]} 45. Ra2 {[%clk 0:00:03]}  Rd8 {[%clk 0:00:38]} 46. c4 {[%clk 0:00:03]}  Rhxd2 {[%clk 0:00:38]} 47. Rxd2 {[%clk 0:00:03]}  Rxd2 {[%clk 0:00:39]} 48. Ke4 {[%clk 0:00:04]}  Kf7 {[%clk 0:00:37]} 49. Nf3 {[%clk 0:00:04]}  Rg2 {[%clk 0:00:33]} 50. c5 {[%clk 0:00:03]}  Rxg3 {[%clk 0:00:32]} 51. c6 {[%clk 0:00:03]}  Ke7 {[%clk 0:00:32]} 52. Ne5 {[%clk 0:00:04]}  Kd6 {[%clk 0:00:32]} 53. Kd4 {[%clk 0:00:03]}  h5 {[%clk 0:00:32]} 54. Ke4 {[%clk 0:00:03]}  h4 {[%clk 0:00:33]} 55. Nf3 {[%clk 0:00:04]}  h3 {[%clk 0:00:32]} 56. Ne5 {[%clk 0:00:03]}  h2 {[%clk 0:00:32]} 57. c7 {[%clk 0:00:03]}  h1=Q+ {[%clk 0:00:33]} 0-1


[Site "https://www.chess.com"]

[Event "Titled Tuesday Blitz February 28 Late 2023"]
[White "Abdrlauf, Elham"]
[Black "reevecanada"]
[WhiteFideId "1533533"]
[WhiteElo "2476"]
[BlackElo "2482"]
[Result "1-0"]
[Round "01"]
[TimeControl "180+2"]
[Date "2023.02.28"]
[WhiteClock "0:02:03"]
[BlackClock "0:00:35"]

1. e4 {[%clk 0:02:59]}  c5 {[%clk 0:02:58]} 2. Nf3 {[%clk 0:03:00]}  d6 {[%clk 0:02:58]} 3. d4 {[%clk 0:03:00]}  cxd4 {[%clk 0:02:46]} 4. Nxd4 {[%clk 0:03:01]}  Nf6 {[%clk 0:02:45]} 5. f3 {[%clk 0:03:01]}  e5 {[%clk 0:02:42]} 6. Nb3 {[%clk 0:03:01]}  Be6 {[%clk 0:02:42]} 7. c4 {[%clk 0:03:01]}  Be7 {[%clk 0:02:43]} 8. Nc3 {[%clk 0:03:02]}  Nbd7 {[%clk 0:02:44]} 9. Be3 {[%clk 0:03:01]}  O-O {[%clk 0:02:44]} 10. Rc1 {[%clk 0:03:00]}  Nb6 {[%clk 0:02:44]} 11. Nd5 {[%clk 0:02:57]}  Bxd5 {[%clk 0:02:38]} 12. cxd5 {[%clk 0:02:58]}  Rc8 {[%clk 0:02:37]} 13. Be2 {[%clk 0:02:58]}  Nfd7 {[%clk 0:02:33]} 14. O-O {[%clk 0:02:57]}  Bg5 {[%clk 0:02:33]} 15. Qd2 {[%clk 0:02:56]}  Bxe3+ {[%clk 0:02:30]} 16. Qxe3 {[%clk 0:02:57]}  a6 {[%clk 0:02:28]} 17. Na5 {[%clk 0:02:54]}  Nxd5 {[%clk 0:02:26]} 18. Rxc8 {[%clk 0:02:36]}  Nxe3 {[%clk 0:01:58]} 19. Rxd8 {[%clk 0:02:35]}  Rxd8 {[%clk 0:01:57]} 20. Rc1 {[%clk 0:02:35]}  d5 {[%clk 0:01:35]} 21. Kf2 {[%clk 0:02:22]}  d4 {[%clk 0:01:33]} 22. Nxb7 {[%clk 0:02:22]}  Rb8 {[%clk 0:01:32]} 23. Bxa6 {[%clk 0:02:22]}  Kf8 {[%clk 0:00:57]} 24. b4 {[%clk 0:02:21]}  Ke7 {[%clk 0:00:43]} 25. Rc7 {[%clk 0:02:15]}  Nd1+ {[%clk 0:00:41]} 26. Ke2 {[%clk 0:02:11]}  Nc3+ {[%clk 0:00:41]} 27. Kd3 {[%clk 0:02:11]}  Na4 {[%clk 0:00:41]} 28. Bb5 {[%clk 0:02:06]}  Nb6 {[%clk 0:00:37]} 29. Bxd7 {[%clk 0:02:06]}  Nxd7 {[%clk 0:00:38]} 30. Nc5 {[%clk 0:02:06]}  Rd8 {[%clk 0:00:36]} 31. Ra7 {[%clk 0:02:02]}  Kd6 {[%clk 0:00:35]} 32. Nb7+ {[%clk 0:02:02]}  Kc7 {[%clk 0:00:35]} 33. Nxd8+ {[%clk 0:02:03]} 1-0


[Site "https://www.chess.com"]

[Event "Titled Tuesday Blitz February 28 Late 2023"]
[White "Toncheva, Nadya"]
[Black "Rustemov, Alexander"]
[WhiteFideId "2924056"]
[BlackFideId "4119002"]
[WhiteElo "2101"]
[BlackElo "2910"]
[Result "0-1"]
[Round "01"]
[TimeControl "180+2"]
[Date "2023.02.28"]
[WhiteClock "0:00:27"]
[BlackClock "0:01:09"]

1. e4 {[%clk 0:03:00]}  e6 {[%clk 0:03:00]} 2. d4 {[%clk 0:02:59]}  d5 {[%clk 0:03:00]} 3. Nd2 {[%clk 0:03:00]}  dxe4 {[%clk 0:03:01]} 4. Nxe4 {[%clk 0:03:01]}  Bd7 {[%clk 0:03:01]} 5. Nf3 {[%clk 0:03:00]}  Bc6 {[%clk 0:03:02]} 6. Bd3 {[%clk 0:03:00]}  Nd7 {[%clk 0:03:02]} 7. O-O {[%clk 0:03:00]}  Ngf6 {[%clk 0:03:03]} 8. Qe2 {[%clk 0:02:57]}  Be7 {[%clk 0:03:02]} 9. c3 {[%clk 0:02:54]}  Nxe4 {[%clk 0:03:00]} 10. Bxe4 {[%clk 0:02:54]}  Bxe4 {[%clk 0:03:00]} 11. Qxe4 {[%clk 0:02:54]}  c6 {[%clk 0:03:01]} 12. Ne5 {[%clk 0:02:49]}  O-O {[%clk 0:02:59]} 13. Be3 {[%clk 0:02:46]}  Nxe5 {[%clk 0:02:55]} 14. dxe5 {[%clk 0:02:45]}  Qd5 {[%clk 0:02:53]} 15. Qxd5 {[%clk 0:02:42]}  cxd5 {[%clk 0:02:44]} 16. Rac1 {[%clk 0:02:38]}  Rfc8 {[%clk 0:02:43]} 17. f4 {[%clk 0:02:36]}  Bc5 {[%clk 0:02:30]} 18. Kf2 {[%clk 0:02:34]}  f6 {[%clk 0:02:12]} 19. exf6 {[%clk 0:02:30]}  gxf6 {[%clk 0:02:12]} 20. Rfe1 {[%clk 0:02:28]}  Kf7 {[%clk 0:02:11]} 21. Rc2 {[%clk 0:02:15]}  h5 {[%clk 0:02:02]} 22. Rce2 {[%clk 0:02:11]}  Bxe3+ {[%clk 0:01:53]} 23. Rxe3 {[%clk 0:02:12]}  Rc6 {[%clk 0:01:43]} 24. Rh3 {[%clk 0:02:04]}  Kg6 {[%clk 0:01:38]} 25. Re2 {[%clk 0:01:58]}  b5 {[%clk 0:01:32]} 26. a3 {[%clk 0:01:55]}  a5 {[%clk 0:01:32]} 27. Rf3 {[%clk 0:01:53]}  Kf5 {[%clk 0:01:29]} 28. g3 {[%clk 0:01:50]}  b4 {[%clk 0:01:28]} 29. axb4 {[%clk 0:01:47]}  axb4 {[%clk 0:01:29]} 30. cxb4 {[%clk 0:01:47]}  Rb8 {[%clk 0:01:30]} 31. Rb3 {[%clk 0:01:41]}  e5 {[%clk 0:01:20]} 32. fxe5 {[%clk 0:00:55]}  fxe5 {[%clk 0:01:20]} 33. h3 {[%clk 0:00:34]}  Rcb6 {[%clk 0:01:13]} 34. g4+ {[%clk 0:00:32]}  hxg4 {[%clk 0:01:12]} 35. hxg4+ {[%clk 0:00:33]}  Ke6 {[%clk 0:01:11]} 36. Kf3 {[%clk 0:00:29]}  Rxb4 {[%clk 0:01:10]} 37. Rxb4 {[%clk 0:00:29]}  Rxb4 {[%clk 0:01:10]} 38. Rg2 {[%clk 0:00:27]}  Rb3+ {[%clk 0:01:09]} 0-1


[Site "https://www.chess.com"]

[Event "Titled Tuesday Blitz February 28 Late 2023"]
[White "Khandelwal, Ankush"]
[Black "Svane, Frederik"]
[WhiteFideId "413470"]
[BlackFideId "12923044"]
[WhiteElo "2263"]
[BlackElo "2502"]
[Result "0-1"]
[Round "01"]
[TimeControl "180+2"]
[Date "2023.02.28"]
[WhiteClock "0:00:12"]
[BlackClock "0:01:02"]

1. e4 {[%clk 0:03:00]}  c6 {[%clk 0:02:57]} 2. d4 {[%clk 0:02:59]}  d5 {[%clk 0:02:57]} 3. exd5 {[%clk 0:02:59]}  cxd5 {[%clk 0:02:58]} 4. c4 {[%clk 0:02:59]}  Nf6 {[%clk 0:02:56]} 5. Nf3 {[%clk 0:02:58]}  Nc6 {[%clk 0:02:56]} 6. Nc3 {[%clk 0:02:58]}  a6 {[%clk 0:02:57]} 7. cxd5 {[%clk 0:02:57]}  Nxd5 {[%clk 0:02:57]} 8. Bc4 {[%clk 0:02:58]}  Be6 {[%clk 0:02:57]} 9. Qe2 {[%clk 0:02:55]}  Nxc3 {[%clk 0:02:43]} 10. bxc3 {[%clk 0:02:54]}  Bxc4 {[%clk 0:02:44]} 11. Qxc4 {[%clk 0:02:55]}  e6 {[%clk 0:02:44]} 12. O-O {[%clk 0:02:55]}  Be7 {[%clk 0:02:45]} 13. Re1 {[%clk 0:02:56]}  O-O {[%clk 0:02:44]} 14. Rb1 {[%clk 0:02:53]}  Rc8 {[%clk 0:02:44]} 15. Qa4 {[%clk 0:02:49]}  Qd7 {[%clk 0:02:38]} 16. Bd2 {[%clk 0:02:42]}  Rfd8 {[%clk 0:02:37]} 17. Rb6 {[%clk 0:02:37]}  Nxd4 {[%clk 0:02:03]} 18. Qxd4 {[%clk 0:02:22]}  Qc7 {[%clk 0:02:04]} 19. Qg4 {[%clk 0:00:39]}  Qxb6 {[%clk 0:02:02]} 20. Bh6 {[%clk 0:00:40]}  Bf6 {[%clk 0:02:00]} 21. Ng5 {[%clk 0:00:29]}  gxh6 {[%clk 0:01:03]} 22. Ne4+ {[%clk 0:00:11]}  Bg7 {[%clk 0:01:03]} 23. Nf6+ {[%clk 0:00:11]}  Kh8 {[%clk 0:01:03]} 24. Qe4 {[%clk 0:00:12]}  Bxf6 {[%clk 0:01:02]} 0-1


[Site "https://www.chess.com"]

[Event "Titled Tuesday Blitz February 28 Late 2023"]
[White "Kochetov, Andrey"]
[Black "Swiercz, Dariusz"]
[WhiteFideId "24130532"]
[BlackFideId "1126881"]
[WhiteElo "2475"]
[BlackElo "2627"]
[Result "0-1"]
[Round "01"]
[TimeControl "180+2"]
[Date "2023.02.28"]
[WhiteClock "0:01:00"]
[BlackClock "0:01:24"]

1. e4 {[%clk 0:03:00]}  c5 {[%clk 0:02:56]} 2. Nf3 {[%clk 0:02:57]}  Nc6 {[%clk 0:02:55]} 3. d4 {[%clk 0:02:57]}  cxd4 {[%clk 0:02:56]} 4. Nxd4 {[%clk 0:02:57]}  e5 {[%clk 0:02:56]} 5. Nb5 {[%clk 0:02:58]}  d6 {[%clk 0:02:56]} 6. c4 {[%clk 0:02:57]}  g6 {[%clk 0:02:56]} 7. N1c3 {[%clk 0:02:55]}  a6 {[%clk 0:02:56]} 8. Na3 {[%clk 0:02:55]}  Be6 {[%clk 0:02:57]} 9. Be3 {[%clk 0:02:55]}  Rc8 {[%clk 0:02:58]} 10. Qd2 {[%clk 0:02:52]}  Bg7 {[%clk 0:02:57]} 11. Nc2 {[%clk 0:02:50]}  f5 {[%clk 0:02:56]} 12. exf5 {[%clk 0:02:39]}  gxf5 {[%clk 0:02:56]} 13. f4 {[%clk 0:02:39]}  Nf6 {[%clk 0:02:55]} 14. Be2 {[%clk 0:02:35]}  O-O {[%clk 0:02:43]} 15. O-O {[%clk 0:02:33]}  d5 {[%clk 0:02:28]} 16. fxe5 {[%clk 0:02:11]}  Ne4 {[%clk 0:02:28]} 17. Nxe4 {[%clk 0:01:56]}  dxe4 {[%clk 0:02:29]} 18. Rad1 {[%clk 0:01:43]}  Bxe5 {[%clk 0:02:20]} 19. b3 {[%clk 0:01:39]}  Qh4 {[%clk 0:01:57]} 20. g3 {[%clk 0:01:16]}  Bxg3 {[%clk 0:01:44]} 21. hxg3 {[%clk 0:01:16]}  Qxg3+ {[%clk 0:01:45]} 22. Kh1 {[%clk 0:01:17]}  Qh3+ {[%clk 0:01:25]} 23. Kg1 {[%clk 0:01:14]}  Kf7 {[%clk 0:01:26]} 24. Kf2 {[%clk 0:01:00]}  Qh4+ {[%clk 0:01:24]} 0-1


[Site "https://www.chess.com"]

[Event "Titled Tuesday Blitz February 28 Late 2023"]
[White "Petrovic, Aleksa"]
[Black "Chigaev, Maksim"]
[WhiteFideId "967629"]
[BlackFideId "4108116"]
[WhiteElo "2304"]
[BlackElo "2547"]
[Result "0-1"]
[Round "01"]
[TimeControl "180+2"]
[Date "2023.02.28"]
[WhiteClock "0:00:17"]
[BlackClock "0:00:11"]

1. d4 {[%clk 0:02:59]}  Nf6 {[%clk 0:02:59]} 2. c4 {[%clk 0:02:59]}  g6 {[%clk 0:02:59]} 3. Nc3 {[%clk 0:02:59]}  Bg7 {[%clk 0:03:00]} 4. e4 {[%clk 0:02:59]}  d6 {[%clk 0:03:00]} 5. Be2 {[%clk 0:02:59]}  O-O {[%clk 0:03:01]} 6. Bg5 {[%clk 0:02:59]}  c5 {[%clk 0:03:00]} 7. d5 {[%clk 0:02:58]}  e6 {[%clk 0:03:00]} 8. Nf3 {[%clk 0:02:57]}  exd5 {[%clk 0:03:01]} 9. exd5 {[%clk 0:02:57]}  Qb6 {[%clk 0:03:01]} 10. Qd2 {[%clk 0:02:54]}  Bf5 {[%clk 0:03:01]} 11. O-O {[%clk 0:02:52]}  Ne4 {[%clk 0:02:59]} 12. Nxe4 {[%clk 0:02:42]}  Bxe4 {[%clk 0:02:59]} 13. Qf4 {[%clk 0:01:52]}  Bxf3 {[%clk 0:01:48]} 14. Bxf3 {[%clk 0:01:52]}  Nd7 {[%clk 0:01:45]} 15. Rab1 {[%clk 0:01:30]}  Rfe8 {[%clk 0:01:37]} 16. h4 {[%clk 0:01:23]}  Ne5 {[%clk 0:01:31]} 17. Be2 {[%clk 0:01:17]}  h5 {[%clk 0:01:28]} 18. Rfe1 {[%clk 0:01:12]}  Qa5 {[%clk 0:01:25]} 19. Red1 {[%clk 0:01:02]}  Qxa2 {[%clk 0:01:21]} 20. Bf1 {[%clk 0:00:48]}  Qb3 {[%clk 0:01:16]} 21. Rbc1 {[%clk 0:00:41]}  a6 {[%clk 0:01:13]} 22. Re1 {[%clk 0:00:40]}  Qxb2 {[%clk 0:01:06]} 23. Rb1 {[%clk 0:00:39]}  Qc2 {[%clk 0:00:30]} 24. Rxb7 {[%clk 0:00:36]}  Qf5 {[%clk 0:00:31]} 25. Qxf5 {[%clk 0:00:36]}  gxf5 {[%clk 0:00:32]} 26. Reb1 {[%clk 0:00:33]}  Ng4 {[%clk 0:00:29]} 27. Rd7 {[%clk 0:00:30]}  Bd4 {[%clk 0:00:25]} 28. Rxd6 {[%clk 0:00:29]}  Bxf2+ {[%clk 0:00:21]} 29. Kh1 {[%clk 0:00:29]}  Rab8 {[%clk 0:00:22]} 30. Rxb8 {[%clk 0:00:27]}  Rxb8 {[%clk 0:00:20]} 31. Rd8+ {[%clk 0:00:22]}  Rxd8 {[%clk 0:00:21]} 32. Bxd8 {[%clk 0:00:23]}  Kf8 {[%clk 0:00:18]} 33. Bd3 {[%clk 0:00:21]}  Ke8 {[%clk 0:00:16]} 34. Bg5 {[%clk 0:00:20]}  f6 {[%clk 0:00:12]} 35. Bd2 {[%clk 0:00:18]}  Be3 {[%clk 0:00:11]} 36. Ba5 {[%clk 0:00:17]}  Nf2+ {[%clk 0:00:11]} 0-1


[Site "https://www.chess.com"]

[Event "Titled Tuesday Blitz February 28 Late 2023"]
[White "Livaic, Leon"]
[Black "Sokac, Marko"]
[WhiteFideId "14531534"]
[BlackFideId "14531356"]
[WhiteElo "2509"]
[BlackElo "2355"]
[Result "1-0"]
[Round "01"]
[TimeControl "180+2"]
[Date "2023.02.28"]
[WhiteClock "0:00:22"]
[BlackClock "0:00:02"]

1. Nf3 {[%clk 0:02:58]}  e6 {[%clk 0:03:00]} 2. g3 {[%clk 0:02:57]}  g5 {[%clk 0:03:00]} 3. h3 {[%clk 0:02:56]}  Bg7 {[%clk 0:02:59]} 4. Bg2 {[%clk 0:02:56]}  h6 {[%clk 0:02:58]} 5. d4 {[%clk 0:02:52]}  Ne7 {[%clk 0:02:58]} 6. e4 {[%clk 0:02:51]}  d6 {[%clk 0:02:59]} 7. c4 {[%clk 0:02:51]}  Nd7 {[%clk 0:02:58]} 8. Nc3 {[%clk 0:02:51]}  Ng6 {[%clk 0:02:57]} 9. Qc2 {[%clk 0:02:43]}  b6 {[%clk 0:02:54]} 10. Be3 {[%clk 0:02:37]}  Bb7 {[%clk 0:02:54]} 11. O-O-O {[%clk 0:02:36]}  Qe7 {[%clk 0:02:20]} 12. Kb1 {[%clk 0:02:35]}  O-O-O {[%clk 0:02:19]} 13. Rhe1 {[%clk 0:02:27]}  Kb8 {[%clk 0:02:17]} 14. a3 {[%clk 0:02:13]}  Rhe8 {[%clk 0:02:18]} 15. Ng1 {[%clk 0:02:07]}  Qf8 {[%clk 0:02:17]} 16. f4 {[%clk 0:02:00]}  gxf4 {[%clk 0:02:13]} 17. gxf4 {[%clk 0:02:01]}  Nh4 {[%clk 0:02:13]} 18. Bf1 {[%clk 0:02:00]}  f5 {[%clk 0:02:09]} 19. e5 {[%clk 0:01:59]}  dxe5 {[%clk 0:02:04]} 20. fxe5 {[%clk 0:01:58]}  Nf3 {[%clk 0:01:46]} 21. Nxf3 {[%clk 0:01:58]}  Bxf3 {[%clk 0:01:47]} 22. Bg2 {[%clk 0:01:53]}  Bxd1 {[%clk 0:01:18]} 23. Qxd1 {[%clk 0:01:53]}  Nxe5 {[%clk 0:01:18]} 24. Qa4 {[%clk 0:01:44]}  f4 {[%clk 0:01:09]} 25. dxe5 {[%clk 0:01:39]}  f3 {[%clk 0:00:52]} 26. Bh1 {[%clk 0:01:39]}  Bxe5 {[%clk 0:00:52]} 27. Qc6 {[%clk 0:00:44]}  Rd6 {[%clk 0:00:26]} 28. Qxf3 {[%clk 0:00:41]}  Qxf3 {[%clk 0:00:27]} 29. Bxf3 {[%clk 0:00:42]}  Bxc3 {[%clk 0:00:15]} 30. bxc3 {[%clk 0:00:43]}  Rd3 {[%clk 0:00:15]} 31. Kc2 {[%clk 0:00:43]}  Red8 {[%clk 0:00:12]} 32. Be4 {[%clk 0:00:40]}  R3d6 {[%clk 0:00:11]} 33. Bxh6 {[%clk 0:00:38]}  Rh8 {[%clk 0:00:12]} 34. Bf4 {[%clk 0:00:38]}  Rd7 {[%clk 0:00:08]} 35. Rh1 {[%clk 0:00:36]}  Rf7 {[%clk 0:00:08]} 36. Bg5 {[%clk 0:00:33]}  Rf2+ {[%clk 0:00:06]} 37. Kb3 {[%clk 0:00:33]}  Re2 {[%clk 0:00:04]} 38. Bc2 {[%clk 0:00:31]}  Rg2 {[%clk 0:00:04]} 39. Bf6 {[%clk 0:00:26]}  Rh6 {[%clk 0:00:03]} 40. Be5 {[%clk 0:00:26]}  Rh5 {[%clk 0:00:03]} 41. Bd4 {[%clk 0:00:25]}  a5 {[%clk 0:00:03]} 42. a4 {[%clk 0:00:25]}  e5 {[%clk 0:00:02]} 43. Be3 {[%clk 0:00:25]}  Rg3 {[%clk 0:00:02]} 44. Re1 {[%clk 0:00:22]} 1-0


[Site "https://www.chess.com"]

[Event "Titled Tuesday Blitz February 28 Late 2023"]
[White "Goncalves, Davi Sulzbacher"]
[Black "Indjic, Aleksandar"]
[WhiteFideId "2154510"]
[BlackFideId "911925"]
[WhiteElo "2182"]
[BlackElo "2625"]
[Result "0-1"]
[Round "01"]
[TimeControl "180+2"]
[Date "2023.02.28"]
[WhiteClock "0:00:02"]
[BlackClock "0:01:11"]

1. d4 {[%clk 0:03:00]}  Nf6 {[%clk 0:02:59]} 2. Nf3 {[%clk 0:02:59]}  e6 {[%clk 0:03:00]} 3. g3 {[%clk 0:02:58]}  c5 {[%clk 0:03:00]} 4. Bg2 {[%clk 0:02:57]}  cxd4 {[%clk 0:03:00]} 5. Nxd4 {[%clk 0:02:58]}  d5 {[%clk 0:03:01]} 6. c4 {[%clk 0:02:58]}  e5 {[%clk 0:03:01]} 7. Nc2 {[%clk 0:02:55]}  d4 {[%clk 0:03:01]} 8. O-O {[%clk 0:02:51]}  Nc6 {[%clk 0:03:00]} 9. b4 {[%clk 0:02:44]}  a5 {[%clk 0:02:23]} 10. b5 {[%clk 0:02:41]}  Nb8 {[%clk 0:02:18]} 11. Nd2 {[%clk 0:02:23]}  Nbd7 {[%clk 0:02:04]} 12. f4 {[%clk 0:01:58]}  Bc5 {[%clk 0:01:59]} 13. Nb3 {[%clk 0:01:52]}  Ba7 {[%clk 0:01:55]} 14. fxe5 {[%clk 0:01:14]}  Nxe5 {[%clk 0:01:49]} 15. c5 {[%clk 0:01:08]}  a4 {[%clk 0:01:48]} 16. b6 {[%clk 0:01:00]}  Bxb6 {[%clk 0:01:48]} 17. cxb6 {[%clk 0:00:58]}  axb3 {[%clk 0:01:48]} 18. Qxd4 {[%clk 0:00:35]}  Qxd4+ {[%clk 0:01:42]} 19. Nxd4 {[%clk 0:00:36]}  bxa2 {[%clk 0:01:42]} 20. Nb5 {[%clk 0:00:33]}  O-O {[%clk 0:01:40]} 21. Ba3 {[%clk 0:00:34]}  Rd8 {[%clk 0:01:37]} 22. Be7 {[%clk 0:00:31]}  Rd2 {[%clk 0:01:33]} 23. Nd6 {[%clk 0:00:11]}  Nfd7 {[%clk 0:01:19]} 24. Nxc8 {[%clk 0:00:07]}  Rxc8 {[%clk 0:01:20]} 25. Bxb7 {[%clk 0:00:07]}  Rb8 {[%clk 0:01:20]} 26. Be4 {[%clk 0:00:04]}  Rxb6 {[%clk 0:01:19]} 27. Bd8 {[%clk 0:00:04]}  Rbb2 {[%clk 0:01:17]} 28. Bc7 {[%clk 0:00:02]}  f6 {[%clk 0:01:16]} 29. Bf5 {[%clk 0:00:02]}  Kf7 {[%clk 0:01:13]} 30. Bxh7 {[%clk 0:00:01]}  g6 {[%clk 0:01:12]} 31. Rad1 {[%clk 0:00:01]}  Rxd1 {[%clk 0:01:11]} 32. Rxd1 {[%clk 0:00:02]}  Rb1 {[%clk 0:01:11]} 0-1


[Site "https://www.chess.com"]